[Event "Titled Tuesday Blitz April 11 Late 2023"]
[White "Rose, Felix"]
[Black "Silva, Caio Henrique Angelico"]
[WhiteFideId "5105722"]
[BlackFideId "22777210"]
[WhiteElo "2039"]
[BlackElo "2096"]
[Result "0-1"]
[Round "05"]
[TimeControl "180+2"]
[Date "2023.04.11"]
[WhiteClock "0:00:52"]
[BlackClock "0:00:55"]

1. e4 {[%clk 0:03:00]}  c6 {[%clk 0:02:58]} 2. d4 {[%clk 0:03:00]}  d5 {[%clk 0:02:59]} 3. e5 {[%clk 0:03:01]}  c5 {[%clk 0:02:59]} 4. dxc5 {[%clk 0:03:01]}  e6 {[%clk 0:02:59]} 5. a3 {[%clk 0:03:02]}  Bxc5 {[%clk 0:02:59]} 6. Nf3 {[%clk 0:03:02]}  Ne7 {[%clk 0:02:56]} 7. Bd3 {[%clk 0:03:02]}  Nbc6 {[%clk 0:02:50]} 8. b4 {[%clk 0:03:00]}  Bb6 {[%clk 0:02:50]} 9. Bb2 {[%clk 0:02:58]}  Ng6 {[%clk 0:02:44]} 10. O-O {[%clk 0:02:58]}  O-O {[%clk 0:02:40]} 11. Re1 {[%clk 0:02:58]}  Bd7 {[%clk 0:02:35]} 12. Nbd2 {[%clk 0:02:58]}  a5 {[%clk 0:02:34]} 13. b5 {[%clk 0:02:56]}  Nce7 {[%clk 0:02:34]} 14. a4 {[%clk 0:02:55]}  Rc8 {[%clk 0:02:33]} 15. c4 {[%clk 0:02:54]}  Bc5 {[%clk 0:01:59]} 16. cxd5 {[%clk 0:02:36]}  Nxd5 {[%clk 0:02:00]} 17. Ne4 {[%clk 0:02:33]}  Bb4 {[%clk 0:01:59]} 18. Rf1 {[%clk 0:02:20]}  Nc3 {[%clk 0:01:44]} 19. Nxc3 {[%clk 0:02:08]}  Bxc3 {[%clk 0:01:42]} 20. Bxc3 {[%clk 0:02:06]}  Rxc3 {[%clk 0:01:43]} 21. Bxg6 {[%clk 0:02:00]}  hxg6 {[%clk 0:01:40]} 22. Qd2 {[%clk 0:01:59]}  Qc7 {[%clk 0:01:38]} 23. Rfd1 {[%clk 0:01:56]}  Rd8 {[%clk 0:01:31]} 24. Ng5 {[%clk 0:01:36]}  Qxe5 {[%clk 0:01:22]} 25. Re1 {[%clk 0:01:17]}  Qc7 {[%clk 0:01:15]} 26. Rad1 {[%clk 0:01:09]}  Rc5 {[%clk 0:01:09]} 27. Qe3 {[%clk 0:00:53]}  b6 {[%clk 0:00:58]} 28. Qg3 {[%clk 0:00:52]}  Qxg3 {[%clk 0:00:55]} 0-1


[Site "https://www.chess.com"]

[Event "Titled Tuesday Blitz April 11 Late 2023"]
[White "Rodriguez Santiago, Jaime"]
[Black "Goltseva, Ekaterina"]
[WhiteFideId "3100898"]
[BlackFideId "24173770"]
[WhiteElo "2025"]
[BlackElo "2200"]
[Result "1-0"]
[Round "05"]
[TimeControl "180+2"]
[Date "2023.04.11"]
[WhiteClock "0:00:29"]
[BlackClock "0:00:02"]

1. c4 {[%clk 0:03:00]}  Nf6 {[%clk 0:02:02]} 2. Nc3 {[%clk 0:02:58]}  e6 {[%clk 0:02:01]} 3. e4 {[%clk 0:02:56]}  e5 {[%clk 0:02:01]} 4. g3 {[%clk 0:02:53]}  Bc5 {[%clk 0:01:58]} 5. h3 {[%clk 0:02:48]}  Nc6 {[%clk 0:01:56]} 6. Bg2 {[%clk 0:02:48]}  h5 {[%clk 0:01:55]} 7. Nf3 {[%clk 0:02:45]}  d6 {[%clk 0:01:54]} 8. a3 {[%clk 0:02:38]}  a5 {[%clk 0:01:53]} 9. d3 {[%clk 0:02:29]}  Nh7 {[%clk 0:01:19]} 10. Nd5 {[%clk 0:01:59]}  Be6 {[%clk 0:01:12]} 11. Rb1 {[%clk 0:01:37]}  a4 {[%clk 0:00:52]} 12. O-O {[%clk 0:01:25]}  Qd7 {[%clk 0:00:51]} 13. Kh2 {[%clk 0:01:23]}  Rg8 {[%clk 0:00:36]} 14. Ng5 {[%clk 0:01:18]}  Nxg5 {[%clk 0:00:26]} 15. Bxg5 {[%clk 0:01:19]}  Rh8 {[%clk 0:00:26]} 16. f4 {[%clk 0:01:13]}  Bxd5 {[%clk 0:00:15]} 17. cxd5 {[%clk 0:01:04]}  Nd4 {[%clk 0:00:15]} 18. fxe5 {[%clk 0:01:02]}  dxe5 {[%clk 0:00:16]} 19. Rc1 {[%clk 0:00:57]}  Bb6 {[%clk 0:00:11]} 20. Rc4 {[%clk 0:00:52]}  f6 {[%clk 0:00:09]} 21. Be3 {[%clk 0:00:49]}  Qb5 {[%clk 0:00:08]} 22. Bxd4 {[%clk 0:00:48]}  exd4 {[%clk 0:00:06]} 23. Rb4 {[%clk 0:00:47]}  Qd7 {[%clk 0:00:06]} 24. Qe2 {[%clk 0:00:40]}  Qd6 {[%clk 0:00:06]} 25. Rf5 {[%clk 0:00:38]}  O-O-O {[%clk 0:00:04]} 26. Rxh5 {[%clk 0:00:37]}  Rxh5 {[%clk 0:00:03]} 27. Qxh5 {[%clk 0:00:37]}  Kb8 {[%clk 0:00:01]} 28. Qd1 {[%clk 0:00:37]}  Qc5 {[%clk 0:00:02]} 29. Qxa4 {[%clk 0:00:36]}  Qe7 {[%clk 0:00:01]} 30. Qd1 {[%clk 0:00:34]}  f5 {[%clk 0:00:02]} 31. Ra4 {[%clk 0:00:34]}  Bc5 {[%clk 0:00:01]} 32. b4 {[%clk 0:00:32]}  Bd6 {[%clk 0:00:02]} 33. Qf3 {[%clk 0:00:29]}  f4 {[%clk 0:00:02]} 34. gxf4 {[%clk 0:00:29]}  Rf8 {[%clk 0:00:03]} 35. e5 {[%clk 0:00:29]}  Bxe5 {[%clk 0:00:03]} 36. d6 {[%clk 0:00:30]}  Bxf4+ {[%clk 0:00:02]} 37. Kh1 {[%clk 0:00:29]} 1-0


[Site "https://www.chess.com"]

[Event "Titled Tuesday Blitz April 11 Late 2023"]
[White "Wu, Brandon"]
[Black "Kostiukov, Alexandr"]
[WhiteFideId "30909228"]
[BlackFideId "14108100"]
[WhiteElo "2123"]
[BlackElo "2202"]
[Result "1-0"]
[Round "05"]
[TimeControl "180+2"]
[Date "2023.04.11"]
[WhiteClock "0:00:59"]
[BlackClock "0:00:04"]

1. d4 {[%clk 0:03:00]}  g6 {[%clk 0:02:58]} 2. Nf3 {[%clk 0:03:00]}  Bg7 {[%clk 0:02:59]} 3. g3 {[%clk 0:03:00]}  d6 {[%clk 0:03:00]} 4. Bg2 {[%clk 0:03:00]}  e5 {[%clk 0:03:00]} 5. O-O {[%clk 0:03:01]}  exd4 {[%clk 0:03:00]} 6. Nxd4 {[%clk 0:03:02]}  Ne7 {[%clk 0:03:01]} 7. c4 {[%clk 0:03:02]}  Nbc6 {[%clk 0:03:01]} 8. Nxc6 {[%clk 0:03:02]}  bxc6 {[%clk 0:03:02]} 9. Nc3 {[%clk 0:03:01]}  O-O {[%clk 0:03:02]} 10. Qd2 {[%clk 0:02:56]}  Rb8 {[%clk 0:03:02]} 11. b3 {[%clk 0:02:56]}  Bd7 {[%clk 0:02:29]} 12. Bb2 {[%clk 0:02:56]}  Nf5 {[%clk 0:02:13]} 13. e3 {[%clk 0:02:25]}  h5 {[%clk 0:02:01]} 14. Ne4 {[%clk 0:02:20]}  f6 {[%clk 0:01:41]} 15. Rad1 {[%clk 0:02:15]}  Qe7 {[%clk 0:01:36]} 16. Nc5 {[%clk 0:01:54]}  Be8 {[%clk 0:01:31]} 17. Nd3 {[%clk 0:01:53]}  Kh7 {[%clk 0:01:27]} 18. Nf4 {[%clk 0:01:34]}  Bh6 {[%clk 0:01:11]} 19. Qa5 {[%clk 0:01:25]}  g5 {[%clk 0:00:23]} 20. Qxf5+ {[%clk 0:01:23]}  Kg7 {[%clk 0:00:20]} 21. Ne6+ {[%clk 0:01:23]}  Kf7 {[%clk 0:00:13]} 22. Nxf8 {[%clk 0:01:22]}  Bxf8 {[%clk 0:00:14]} 23. Qh7+ {[%clk 0:01:19]}  Bg7 {[%clk 0:00:10]} 24. Qxh5+ {[%clk 0:01:14]}  Kg8 {[%clk 0:00:11]} 25. Qf3 {[%clk 0:01:13]}  a5 {[%clk 0:00:12]} 26. Bc3 {[%clk 0:01:06]}  a4 {[%clk 0:00:11]} 27. b4 {[%clk 0:01:06]}  a3 {[%clk 0:00:11]} 28. h4 {[%clk 0:01:00]}  gxh4 {[%clk 0:00:07]} 29. gxh4 {[%clk 0:01:01]}  Bf7 {[%clk 0:00:04]} 30. Qxc6 {[%clk 0:00:59]} 1-0


[Site "https://www.chess.com"]

[Event "Titled Tuesday Blitz April 11 Late 2023"]
[White "Quispe Santacruz, Javier"]
[Black "Senthilkumar, Pranav"]
[WhiteFideId "3800920"]
[BlackFideId "2083477"]
[WhiteElo "1875"]
[BlackElo "1860"]
[Result "0-1"]
[Round "05"]
[TimeControl "180+2"]
[Date "2023.04.11"]
[WhiteClock "0:00:30"]
[BlackClock "0:01:33"]

1. d4 {[%clk 0:03:00]}  Nf6 {[%clk 0:02:58]} 2. c4 {[%clk 0:03:00]}  e6 {[%clk 0:02:59]} 3. Nf3 {[%clk 0:03:00]}  b6 {[%clk 0:02:58]} 4. g3 {[%clk 0:02:57]}  Bb4+ {[%clk 0:02:58]} 5. Bd2 {[%clk 0:02:55]}  Be7 {[%clk 0:02:57]} 6. Bg2 {[%clk 0:02:54]}  Bb7 {[%clk 0:02:57]} 7. O-O {[%clk 0:02:53]}  O-O {[%clk 0:02:57]} 8. Nc3 {[%clk 0:02:50]}  c5 {[%clk 0:02:57]} 9. Rc1 {[%clk 0:02:40]}  Nc6 {[%clk 0:02:56]} 10. d5 {[%clk 0:02:37]}  Na5 {[%clk 0:02:54]} 11. b3 {[%clk 0:02:33]}  exd5 {[%clk 0:02:53]} 12. Nh4 {[%clk 0:02:32]}  Ne4 {[%clk 0:02:39]} 13. Nf5 {[%clk 0:02:15]}  Nxc3 {[%clk 0:02:27]} 14. Bxc3 {[%clk 0:02:13]}  d4 {[%clk 0:02:27]} 15. Bxb7 {[%clk 0:02:12]}  Nxb7 {[%clk 0:02:27]} 16. Bd2 {[%clk 0:01:59]}  Nd6 {[%clk 0:02:18]} 17. Qc2 {[%clk 0:01:49]}  Nxf5 {[%clk 0:02:13]} 18. Qxf5 {[%clk 0:01:50]}  Bf6 {[%clk 0:02:13]} 19. h4 {[%clk 0:01:48]}  Re8 {[%clk 0:02:12]} 20. Rfe1 {[%clk 0:01:42]}  Re5 {[%clk 0:02:08]} 21. Qf3 {[%clk 0:01:38]}  Re8 {[%clk 0:01:44]} 22. h5 {[%clk 0:01:33]}  h6 {[%clk 0:01:43]} 23. g4 {[%clk 0:01:23]}  Rc8 {[%clk 0:01:40]} 24. Kg2 {[%clk 0:01:07]}  Bg5 {[%clk 0:01:40]} 25. Bf4 {[%clk 0:01:00]}  Rc6 {[%clk 0:01:37]} 26. Bxg5 {[%clk 0:00:38]}  Qxg5 {[%clk 0:01:36]} 27. Qg3 {[%clk 0:00:31]}  Rce6 {[%clk 0:01:33]} 28. Rc2 {[%clk 0:00:30]}  d3 {[%clk 0:01:33]} 0-1


[Site "https://www.chess.com"]

[Event "Titled Tuesday Blitz April 11 Late 2023"]
[White "Antonova, Nadezhda"]
[Black "Harriott, Tyrell"]
[WhiteFideId "14700182"]
[BlackFideId "2086484"]
[WhiteElo "1765"]
[BlackElo "2107"]
[Result "0-1"]
[Round "05"]
[TimeControl "180+2"]
[Date "2023.04.11"]
[WhiteClock "0:00:05"]
[BlackClock "0:00:25"]

1. Nf3 {[%clk 0:02:53]}  e6 {[%clk 0:02:58]} 2. b3 {[%clk 0:02:51]}  f5 {[%clk 0:02:57]} 3. Bb2 {[%clk 0:02:50]}  Nf6 {[%clk 0:02:57]} 4. g3 {[%clk 0:02:49]}  d5 {[%clk 0:02:58]} 5. Bg2 {[%clk 0:02:50]}  Bd6 {[%clk 0:02:58]} 6. O-O {[%clk 0:02:50]}  f4 {[%clk 0:02:57]} 7. d4 {[%clk 0:02:48]}  O-O {[%clk 0:02:54]} 8. c4 {[%clk 0:02:45]}  c6 {[%clk 0:02:51]} 9. Ne5 {[%clk 0:02:45]}  fxg3 {[%clk 0:02:50]} 10. hxg3 {[%clk 0:02:45]}  Bxe5 {[%clk 0:02:51]} 11. dxe5 {[%clk 0:02:45]}  Ng4 {[%clk 0:02:51]} 12. e4 {[%clk 0:02:40]}  Qg5 {[%clk 0:02:50]} 13. f4 {[%clk 0:01:27]}  Qh5 {[%clk 0:02:48]} 14. Rf3 {[%clk 0:01:26]}  dxe4 {[%clk 0:02:27]} 15. Rc3 {[%clk 0:01:26]}  Qh2+ {[%clk 0:02:06]} 16. Kf1 {[%clk 0:01:25]}  Qh5 {[%clk 0:01:55]} 17. Nd2 {[%clk 0:01:20]}  e3 {[%clk 0:01:37]} 18. Ne4 {[%clk 0:00:55]}  Na6 {[%clk 0:01:30]} 19. Qf3 {[%clk 0:00:36]}  Nh2+ {[%clk 0:01:29]} 20. Ke2 {[%clk 0:00:34]}  Nxf3 {[%clk 0:01:26]} 21. Bxf3 {[%clk 0:00:35]}  Qg6 {[%clk 0:01:23]} 22. Kxe3 {[%clk 0:00:33]}  Nb4 {[%clk 0:01:21]} 23. a3 {[%clk 0:00:29]}  Na6 {[%clk 0:01:20]} 24. b4 {[%clk 0:00:26]}  Bd7 {[%clk 0:01:20]} 25. c5 {[%clk 0:00:26]}  Be8 {[%clk 0:01:19]} 26. Rh1 {[%clk 0:00:19]}  Nc7 {[%clk 0:01:07]} 27. Rc2 {[%clk 0:00:18]}  Nd5+ {[%clk 0:01:07]} 28. Kf2 {[%clk 0:00:18]}  Rd8 {[%clk 0:00:59]} 29. Re2 {[%clk 0:00:17]}  h6 {[%clk 0:00:54]} 30. Nd6 {[%clk 0:00:17]}  Qd3 {[%clk 0:00:50]} 31. Be4 {[%clk 0:00:14]}  Qb3 {[%clk 0:00:49]} 32. Rc1 {[%clk 0:00:07]}  Bh5 {[%clk 0:00:44]} 33. Rec2 {[%clk 0:00:06]}  Nxf4 {[%clk 0:00:41]} 34. gxf4 {[%clk 0:00:06]}  Rxf4+ {[%clk 0:00:40]} 35. Kg1 {[%clk 0:00:05]}  Qe3+ {[%clk 0:00:36]} 36. Kh2 {[%clk 0:00:05]}  Rh4+ {[%clk 0:00:36]} 37. Kg2 {[%clk 0:00:05]}  Qh3+ {[%clk 0:00:32]} 38. Kg1 {[%clk 0:00:05]}  Rf8 {[%clk 0:00:25]} 0-1


[Site "https://www.chess.com"]

[Event "Titled Tuesday Blitz April 11 Late 2023"]
[White "Mordechai, Hanan"]
[Black "Stanisz, Patryk"]
[WhiteFideId "2804166"]
[BlackFideId "1123106"]
[WhiteElo "2324"]
[BlackElo "2069"]
[Result "1-0"]
[Round "05"]
[TimeControl "180+2"]
[Date "2023.04.11"]
[WhiteClock "0:00:13"]
[BlackClock "0:00:01"]

1. e4 {[%clk 0:02:59]}  c5 {[%clk 0:02:58]} 2. Nf3 {[%clk 0:02:57]}  Nc6 {[%clk 0:02:58]} 3. Bb5 {[%clk 0:02:54]}  g6 {[%clk 0:02:58]} 4. Bxc6 {[%clk 0:02:53]}  dxc6 {[%clk 0:02:58]} 5. Nc3 {[%clk 0:02:44]}  Bg7 {[%clk 0:02:58]} 6. O-O {[%clk 0:02:44]}  Nf6 {[%clk 0:02:56]} 7. Qe2 {[%clk 0:02:42]}  Bg4 {[%clk 0:02:46]} 8. h3 {[%clk 0:02:40]}  Bxf3 {[%clk 0:02:46]} 9. Qxf3 {[%clk 0:02:41]}  Nd7 {[%clk 0:02:42]} 10. d3 {[%clk 0:02:33]}  e5 {[%clk 0:02:38]} 11. a4 {[%clk 0:02:33]}  a5 {[%clk 0:02:35]} 12. Be3 {[%clk 0:02:29]}  Qe7 {[%clk 0:02:35]} 13. Qg3 {[%clk 0:02:17]}  Nf8 {[%clk 0:02:32]} 14. f4 {[%clk 0:02:02]}  exf4 {[%clk 0:02:33]} 15. Bxf4 {[%clk 0:02:02]}  O-O-O {[%clk 0:02:02]} 16. Rae1 {[%clk 0:01:44]}  Ne6 {[%clk 0:02:01]} 17. Bd2 {[%clk 0:01:35]}  Bd4+ {[%clk 0:01:55]} 18. Kh1 {[%clk 0:01:35]}  f6 {[%clk 0:01:36]} 19. Ne2 {[%clk 0:01:33]}  Be5 {[%clk 0:01:36]} 20. Qf2 {[%clk 0:01:27]}  b6 {[%clk 0:01:35]} 21. Nf4 {[%clk 0:01:18]}  Nxf4 {[%clk 0:01:28]} 22. Bxf4 {[%clk 0:01:19]}  Rhf8 {[%clk 0:01:26]} 23. Qe2 {[%clk 0:01:01]}  Kb7 {[%clk 0:01:23]} 24. c3 {[%clk 0:01:01]}  Qd6 {[%clk 0:01:16]} 25. Bxe5 {[%clk 0:00:57]}  fxe5 {[%clk 0:01:17]} 26. Rxf8 {[%clk 0:00:51]}  Rxf8 {[%clk 0:01:18]} 27. Rf1 {[%clk 0:00:51]}  Rf6 {[%clk 0:01:09]} 28. Rf3 {[%clk 0:00:48]}  Qf8 {[%clk 0:00:54]} 29. Kh2 {[%clk 0:00:40]}  Qf7 {[%clk 0:00:40]} 30. c4 {[%clk 0:00:34]}  Rf4 {[%clk 0:00:32]} 31. Qf2 {[%clk 0:00:30]}  g5 {[%clk 0:00:30]} 32. Qg3 {[%clk 0:00:30]}  h6 {[%clk 0:00:29]} 33. Rxf4 {[%clk 0:00:30]}  exf4 {[%clk 0:00:30]} 34. Qf3 {[%clk 0:00:29]}  Qf6 {[%clk 0:00:30]} 35. Qe2 {[%clk 0:00:28]}  Qd4 {[%clk 0:00:28]} 36. e5 {[%clk 0:00:26]}  Kc7 {[%clk 0:00:20]} 37. e6 {[%clk 0:00:25]}  Kd8 {[%clk 0:00:17]} 38. Qh5 {[%clk 0:00:23]}  Qf6 {[%clk 0:00:13]} 39. h4 {[%clk 0:00:11]}  Qxe6 {[%clk 0:00:12]} 40. hxg5 {[%clk 0:00:11]}  hxg5 {[%clk 0:00:09]} 41. Qxg5+ {[%clk 0:00:12]}  Kd7 {[%clk 0:00:04]} 42. Qxf4 {[%clk 0:00:12]}  Qe2 {[%clk 0:00:02]} 43. Qf7+ {[%clk 0:00:11]}  Kd8 {[%clk 0:00:02]} 44. Qf8+ {[%clk 0:00:11]}  Kd7 {[%clk 0:00:03]} 45. Qf5+ {[%clk 0:00:12]}  Kd8 {[%clk 0:00:03]} 46. b3 {[%clk 0:00:12]}  Qd1 {[%clk 0:00:02]} 47. g4 {[%clk 0:00:11]}  Qxb3 {[%clk 0:00:01]} 48. g5 {[%clk 0:00:11]}  Qc2+ {[%clk 0:00:02]} 49. Kh3 {[%clk 0:00:12]}  Qd1 {[%clk 0:00:03]} 50. g6 {[%clk 0:00:11]}  Qh1+ {[%clk 0:00:04]} 51. Kg4 {[%clk 0:00:12]}  Qg1+ {[%clk 0:00:04]} 52. Kh5 {[%clk 0:00:12]}  Qh2+ {[%clk 0:00:05]} 53. Kg5 {[%clk 0:00:13]}  Qg2+ {[%clk 0:00:05]} 54. Kf6 {[%clk 0:00:13]}  Qg3 {[%clk 0:00:02]} 55. g7 {[%clk 0:00:12]}  Qh4+ {[%clk 0:00:02]} 56. Qg5 {[%clk 0:00:12]}  Qd4+ {[%clk 0:00:02]} 57. Kg6+ {[%clk 0:00:12]}  Kc7 {[%clk 0:00:01]} 58. g8=Q {[%clk 0:00:13]} 1-0


[Site "https://www.chess.com"]

[Event "Titled Tuesday Blitz April 11 Late 2023"]
[White "Buchenau, Frank"]
[Black "Oliveira, Tiago Batista"]
[WhiteFideId "4604350"]
[BlackFideId "2108291"]
[WhiteElo "2157"]
[BlackElo "1962"]
[Result "1-0"]
[Round "05"]
[TimeControl "180+2"]
[Date "2023.04.11"]
[WhiteClock "0:02:01"]
[BlackClock "0:01:27"]

1. e4 {[%clk 0:03:00]}  c5 {[%clk 0:02:58]} 2. Nf3 {[%clk 0:03:00]}  Nc6 {[%clk 0:02:58]} 3. Bb5 {[%clk 0:03:00]}  d6 {[%clk 0:02:58]} 4. O-O {[%clk 0:02:59]}  Bd7 {[%clk 0:02:58]} 5. Re1 {[%clk 0:02:59]}  a6 {[%clk 0:02:57]} 6. Bxc6 {[%clk 0:02:55]}  Bxc6 {[%clk 0:02:54]} 7. d4 {[%clk 0:02:55]}  cxd4 {[%clk 0:02:52]} 8. Nxd4 {[%clk 0:02:54]}  Bd7 {[%clk 0:02:51]} 9. Bg5 {[%clk 0:02:52]}  Qa5 {[%clk 0:02:48]} 10. Bh4 {[%clk 0:02:22]}  g6 {[%clk 0:02:33]} 11. Nc3 {[%clk 0:02:21]}  Bg7 {[%clk 0:02:31]} 12. Nd5 {[%clk 0:02:11]}  e6 {[%clk 0:02:18]} 13. b4 {[%clk 0:02:09]}  Qa3 {[%clk 0:01:43]} 14. Nc7+ {[%clk 0:02:08]}  Kf8 {[%clk 0:01:43]} 15. Nxa8 {[%clk 0:02:06]}  Qc3 {[%clk 0:01:30]} 16. Nb6 {[%clk 0:02:01]}  Ba4 {[%clk 0:01:27]} 1-0


[Site "https://www.chess.com"]

[Event "Titled Tuesday Blitz April 11 Late 2023"]
[White "Ward, Ieuan C"]
[Black "Winkels, Marcel"]
[WhiteFideId "406627"]
[BlackFideId "1003887"]
[WhiteElo "2028"]
[BlackElo "1900"]
[Result "1-0"]
[Round "05"]
[TimeControl "180+2"]
[Date "2023.04.11"]
[WhiteClock "0:00:47"]
[BlackClock "0:00:02"]

1. e4 {[%clk 0:03:00]}  e5 {[%clk 0:02:58]} 2. Nf3 {[%clk 0:03:00]}  Nf6 {[%clk 0:02:59]} 3. Nxe5 {[%clk 0:02:59]}  d6 {[%clk 0:02:58]} 4. Nf3 {[%clk 0:02:59]}  Nxe4 {[%clk 0:02:58]} 5. d4 {[%clk 0:03:00]}  d5 {[%clk 0:02:57]} 6. Bd3 {[%clk 0:03:00]}  Bd6 {[%clk 0:02:54]} 7. O-O {[%clk 0:03:00]}  O-O {[%clk 0:02:52]} 8. Re1 {[%clk 0:03:00]}  Re8 {[%clk 0:02:51]} 9. c4 {[%clk 0:02:58]}  c6 {[%clk 0:02:49]} 10. Nc3 {[%clk 0:02:51]}  Nxc3 {[%clk 0:02:47]} 11. bxc3 {[%clk 0:02:50]}  Rxe1+ {[%clk 0:02:41]} 12. Qxe1 {[%clk 0:02:49]}  Be6 {[%clk 0:02:33]} 13. c5 {[%clk 0:02:47]}  Bc7 {[%clk 0:02:32]} 14. Ng5 {[%clk 0:02:38]}  Qd7 {[%clk 0:02:15]} 15. Bxh7+ {[%clk 0:02:35]}  Kf8 {[%clk 0:02:13]} 16. Nxe6+ {[%clk 0:02:34]}  fxe6 {[%clk 0:02:12]} 17. Bg5 {[%clk 0:02:25]}  Na6 {[%clk 0:02:05]} 18. Qe3 {[%clk 0:02:18]}  Qf7 {[%clk 0:02:04]} 19. Re1 {[%clk 0:02:07]}  Re8 {[%clk 0:02:02]} 20. Bd3 {[%clk 0:02:04]}  e5 {[%clk 0:01:57]} 21. Bxa6 {[%clk 0:01:48]}  bxa6 {[%clk 0:01:52]} 22. g3 {[%clk 0:01:34]}  exd4 {[%clk 0:01:39]} 23. Qxe8+ {[%clk 0:01:32]}  Qxe8 {[%clk 0:01:39]} 24. Rxe8+ {[%clk 0:01:32]}  Kxe8 {[%clk 0:01:40]} 25. cxd4 {[%clk 0:01:32]}  Ba5 {[%clk 0:01:36]} 26. Bf4 {[%clk 0:01:28]}  Bc3 {[%clk 0:01:34]} 27. Be5 {[%clk 0:01:28]}  Kf7 {[%clk 0:01:34]} 28. g4 {[%clk 0:01:26]}  g6 {[%clk 0:01:33]} 29. h4 {[%clk 0:01:24]}  a5 {[%clk 0:01:33]} 30. a4 {[%clk 0:01:22]}  a6 {[%clk 0:01:32]} 31. Kg2 {[%clk 0:01:22]}  Kg8 {[%clk 0:01:21]} 32. f4 {[%clk 0:01:21]}  Kh7 {[%clk 0:01:21]} 33. Kh3 {[%clk 0:01:17]}  Bd2 {[%clk 0:01:19]} 34. g5 {[%clk 0:01:13]}  Be3 {[%clk 0:01:14]} 35. Kg4 {[%clk 0:01:13]}  Bd2 {[%clk 0:01:13]} 36. h5 {[%clk 0:01:11]}  Bc3 {[%clk 0:00:57]} 37. hxg6+ {[%clk 0:01:04]}  Kxg6 {[%clk 0:00:58]} 38. f5+ {[%clk 0:01:04]}  Kf7 {[%clk 0:00:58]} 39. g6+ {[%clk 0:00:59]}  Kg8 {[%clk 0:00:58]} 40. f6 {[%clk 0:00:58]}  Bb2 {[%clk 0:00:50]} 41. Kf5 {[%clk 0:00:57]}  Kf8 {[%clk 0:00:34]} 42. Ke6 {[%clk 0:00:54]}  Bc3 {[%clk 0:00:10]} 43. f7 {[%clk 0:00:49]}  Bxd4 {[%clk 0:00:02]} 44. g7# {[%clk 0:00:47]} 1-0


[Site "https://www.chess.com"]

[Event "Titled Tuesday Blitz April 11 Late 2023"]
[White "Hartikainen, Jarmo"]
[Black "Marcziter, Dmitrii"]
[WhiteFideId "503134"]
[BlackFideId "13900765"]
[WhiteElo "2108"]
[BlackElo "2162"]
[Result "0-1"]
[Round "05"]
[TimeControl "180+2"]
[Date "2023.04.11"]
[WhiteClock "0:00:11"]
[BlackClock "0:00:55"]

1. e4 {[%clk 0:03:00]}  c5 {[%clk 0:02:59]} 2. c3 {[%clk 0:03:00]}  d5 {[%clk 0:02:58]} 3. exd5 {[%clk 0:03:00]}  Qxd5 {[%clk 0:02:59]} 4. d4 {[%clk 0:03:00]}  Nf6 {[%clk 0:02:59]} 5. Nf3 {[%clk 0:02:58]}  Bg4 {[%clk 0:02:58]} 6. Be2 {[%clk 0:02:57]}  e6 {[%clk 0:02:58]} 7. Na3 {[%clk 0:02:54]}  cxd4 {[%clk 0:02:57]} 8. Nb5 {[%clk 0:02:54]}  Na6 {[%clk 0:02:53]} 9. Nbxd4 {[%clk 0:02:37]}  Nc7 {[%clk 0:02:38]} 10. Qa4+ {[%clk 0:02:28]}  Qd7 {[%clk 0:02:35]} 11. Nb5 {[%clk 0:02:02]}  O-O-O {[%clk 0:01:12]} 12. Bf4 {[%clk 0:01:17]}  Nfd5 {[%clk 0:01:08]} 13. Rd1 {[%clk 0:00:33]}  Bxf3 {[%clk 0:01:01]} 14. gxf3 {[%clk 0:00:19]}  a6 {[%clk 0:01:00]} 15. Nxc7 {[%clk 0:00:17]}  Qxa4 {[%clk 0:00:59]} 16. O-O {[%clk 0:00:15]}  Qxf4 {[%clk 0:00:57]} 17. Nxa6 {[%clk 0:00:11]}  Bd6 {[%clk 0:00:55]} 0-1


[Site "https://www.chess.com"]

[Event "Titled Tuesday Blitz April 11 Late 2023"]
[White "Bach, Matthias"]
[Black "Steenbekkers, Franck"]
[WhiteFideId "4603168"]
[BlackFideId "1004220"]
[WhiteElo "2130"]
[BlackElo "2164"]
[Result "1-0"]
[Round "05"]
[TimeControl "180+2"]
[Date "2023.04.11"]
[WhiteClock "0:01:42"]
[BlackClock "0:00:25"]

1. d4 {[%clk 0:02:52]}  Nf6 {[%clk 0:02:53]} 2. c4 {[%clk 0:02:52]}  g6 {[%clk 0:02:49]} 3. Nc3 {[%clk 0:02:49]}  Bg7 {[%clk 0:02:48]} 4. e4 {[%clk 0:02:50]}  d6 {[%clk 0:02:47]} 5. f4 {[%clk 0:02:50]}  O-O {[%clk 0:02:46]} 6. Nf3 {[%clk 0:02:51]}  c5 {[%clk 0:02:45]} 7. d5 {[%clk 0:02:51]}  b5 {[%clk 0:02:45]} 8. cxb5 {[%clk 0:02:50]}  a6 {[%clk 0:02:44]} 9. a4 {[%clk 0:02:50]}  Qa5 {[%clk 0:02:42]} 10. Bd2 {[%clk 0:02:49]}  e6 {[%clk 0:02:41]} 11. dxe6 {[%clk 0:02:45]}  Bxe6 {[%clk 0:02:38]} 12. Be2 {[%clk 0:02:41]}  axb5 {[%clk 0:02:32]} 13. Nxb5 {[%clk 0:02:40]}  Qb6 {[%clk 0:02:29]} 14. Bc3 {[%clk 0:02:39]}  Nxe4 {[%clk 0:02:26]} 15. Bxg7 {[%clk 0:02:38]}  Kxg7 {[%clk 0:02:26]} 16. O-O {[%clk 0:02:35]}  c4+ {[%clk 0:02:24]} 17. Kh1 {[%clk 0:02:34]}  Nf2+ {[%clk 0:02:22]} 18. Rxf2 {[%clk 0:02:33]}  Qxf2 {[%clk 0:02:23]} 19. Nxd6 {[%clk 0:02:28]}  Nc6 {[%clk 0:02:16]} 20. Bxc4 {[%clk 0:02:24]}  Rad8 {[%clk 0:02:04]} 21. Bxe6 {[%clk 0:02:08]}  fxe6 {[%clk 0:02:02]} 22. Rc1 {[%clk 0:02:08]}  Ne7 {[%clk 0:01:09]} 23. Ng5 {[%clk 0:02:02]}  Rf6 {[%clk 0:00:55]} 24. Nf5+ {[%clk 0:01:55]}  Nxf5 {[%clk 0:00:38]} 25. Qxd8 {[%clk 0:01:54]}  Qxf4 {[%clk 0:00:27]} 26. Qc7+ {[%clk 0:01:44]}  Kh6 {[%clk 0:00:25]} 27. Qxf4 {[%clk 0:01:42]} 1-0


[Site "https://www.chess.com"]

[Event "Titled Tuesday Blitz April 11 Late 2023"]
[White "Novikova, Galina"]
[Black "Vargas, Mauricio"]
[WhiteFideId "4157095"]
[BlackFideId "4404572"]
[WhiteElo "1953"]
[BlackElo "1998"]
[Result "1-0"]
[Round "05"]
[TimeControl "180+2"]
[Date "2023.04.11"]
[WhiteClock "0:02:35"]
[BlackClock "0:00:11"]

1. e4 {[%clk 0:03:00]}  d6 {[%clk 0:01:19]} 2. d4 {[%clk 0:02:58]}  c5 {[%clk 0:01:17]} 3. Nf3 {[%clk 0:02:57]}  cxd4 {[%clk 0:01:17]} 4. Nxd4 {[%clk 0:02:58]}  Nf6 {[%clk 0:01:17]} 5. Nc3 {[%clk 0:02:58]}  g6 {[%clk 0:01:16]} 6. Be3 {[%clk 0:02:58]}  Bg7 {[%clk 0:01:17]} 7. f3 {[%clk 0:02:58]}  O-O {[%clk 0:01:18]} 8. Qd2 {[%clk 0:02:59]}  Nc6 {[%clk 0:01:15]} 9. g4 {[%clk 0:03:00]}  a6 {[%clk 0:01:08]} 10. h4 {[%clk 0:02:59]}  h5 {[%clk 0:01:05]} 11. gxh5 {[%clk 0:02:54]}  Nxh5 {[%clk 0:01:05]} 12. O-O-O {[%clk 0:02:54]}  Bd7 {[%clk 0:00:53]} 13. Kb1 {[%clk 0:02:54]}  b5 {[%clk 0:00:50]} 14. Nd5 {[%clk 0:02:52]}  Ne5 {[%clk 0:00:42]} 15. Nf4 {[%clk 0:02:43]}  Ng3 {[%clk 0:00:20]} 16. Rg1 {[%clk 0:02:40]}  Nxf1 {[%clk 0:00:19]} 17. Rdxf1 {[%clk 0:02:41]}  Nc4 {[%clk 0:00:18]} 18. Qe2 {[%clk 0:02:41]}  Nxe3 {[%clk 0:00:18]} 19. Qxe3 {[%clk 0:02:42]}  Qb6 {[%clk 0:00:16]} 20. Nfe2 {[%clk 0:02:38]}  e5 {[%clk 0:00:14]} 21. h5 {[%clk 0:02:36]}  Qxd4 {[%clk 0:00:11]} 22. Nxd4 {[%clk 0:02:36]}  exd4 {[%clk 0:00:11]} 23. Qg5 {[%clk 0:02:35]} 1-0


[Site "https://www.chess.com"]